bitfinex/quotes_BTCUSD_20250508
["timestamp","ask_amount","ask_price","bid_price","bid_amount"]
[1746720322569,0.03391266,100760.0,100750.0,1.4831578]
[1746720322786,0.23240393,100760.0,100750.0,1.47323294]
[1746720322991,0.04383694,100760.0,100750.0,1.4831579]
[1746720323196,0.0239881,100760.0,100750.0,1.49308276]
[1746720323414,0.24694478,100760.0,100750.0,1.44153314]
[1746720323616,0.24694478,100760.0,100750.0,1.4514584]
[1746720323832,0.24694478,100760.0,100750.0,1.46138356]
[1746720324270,0.2370209,100760.0,100750.0,1.46138356]
[1746720324713,0.2370209,100760.0,100750.0,1.4514584]
[1746720324919,0.2370209,100760.0,100750.0,1.46138356]
[1746720325137,0.2370209,100760.0,100750.0,1.8514584]
[1746720325324,0.22709682,100760.0,100750.0,1.48168233]
[1746720325778,0.21717245,100760.0,100750.0,0.70843661]
[1746720325993,0.22709682,100760.0,100750.0,1.09160778]
[1746720326204,0.22709682,100760.0,100750.0,1.10153314]
[1746720326425,0.03852885,100760.0,100750.0,1.12138316]
[1746720326633,0.01406382,100760.0,100750.0,1.15248316]
[1746720327054,0.0239877,100760.0,100750.0,1.15248316]
[1746720327281,0.0239877,100760.0,100750.0,0.5]
[1746720327282,0.45835431,100760.0,100750.0,0.5]
[1746720327490,0.44501535,100760.0,100750.0,0.502]
[1746720327717,0.44501535,100760.0,100750.0,0.503]
[1746720327907,1.47781535,100760.0,100750.0,0.503]
[1746720328151,1.47781535,100760.0,100750.0,0.003]
[1746720328366,1.47781535,100760.0,100750.0,0.002]
[1746720329036,0.24284986,100740.0,100730.0,0.59164782]
[1746720329205,0.0198518,100740.0,100730.0,0.65322901]
[1746720329442,0.23823505,100740.0,100730.0,0.63337495]
[1746720329652,0.19855058,100730.0,100720.0,1.36374194]
[1746720329872,0.22833266,100730.0,100720.0,0.95900004]
[1746720330071,0.22833266,100730.0,100720.0,1.36202754]
[1746720330324,0.02978208,100730.0,100720.0,1.37195546]
[1746720330532,0.34351727,100740.0,100730.0,0.22040504]
[1746720330706,0.35344381,100740.0,100730.0,0.59764908]
[1746720330910,0.34351786,100740.0,100730.0,0.59564908]
[1746720331062,0.13506045,100740.0,100730.0,0.62543027]
[1746720331274,0.34351786,100740.0,100730.0,0.58572175]
[1746720331485,0.33359162,100740.0,100730.0,0.004]
[1746720331676,0.01985022,100750.0,100740.0,0.2283093]
[1746720331924,0.01985022,100750.0,100740.0,0.61148047]
[1746720331925,0.00992467,100750.0,100740.0,0.61148047]
[1746720332075,0.1986316,100760.0,100750.0,0.23821199]
[1746720332076,0.01006422,100760.0,100750.0,0.23821199]
[1746720332277,0.01006382,100760.0,100750.0,0.62138316]
[1746720332479,0.01006382,100760.0,100750.0,0.65348316]
[1746720332683,0.02991188,100760.0,100750.0,0.65969146]
[1746720332888,0.2383285,100760.0,100750.0,0.63984154]
[1746720333089,0.02991247,100760.0,100750.0,0.65969165]
[1746720333414,0.0199878,100760.0,100750.0,0.66961672]
[1746720333593,0.23832771,100760.0,100750.0,0.65969186]
[1746720333800,0.01106382,100760.0,100750.0,0.67873326]
[1746720334072,0.0229877,100760.0,100750.0,0.67873326]
[1746720334265,0.0229877,100760.0,100750.0,1.01873326]
[1746720334266,0.00314014,100760.0,100750.0,1.01873326]
[1746720334614,0.00314014,100760.0,100750.0,1.50257135]
[1746720334816,0.00314014,100760.0,100750.0,1.62622466]
[1746720335018,0.00114014,100760.0,100750.0,2.02622466]
[1746720335504,0.00014014,100760.0,100750.0,2.02622466]
[1746720335808,0.00014014,100760.0,100750.0,2.02722466]
[1746720338526,0.00014014,100760.0,100750.0,2.03450952]
[1746720339409,0.00014014,100760.0,100750.0,1.92391774]
[1746720339607,0.01006392,100760.0,100750.0,1.89668236]
[1746720339814,0.01006392,100760.0,100750.0,1.91653238]
[1746720339995,0.0199878,100760.0,100750.0,1.91653238]
[1746720340397,0.00014014,100760.0,100750.0,1.91653238]
[1746720341016,0.01006392,100760.0,100750.0,1.91653238]
[1746720341214,0.01006392,100760.0,100750.0,1.90003238]
[1746720341410,0.0199878,100760.0,100750.0,1.90003238]
[1746720341647,0.02991188,100760.0,100750.0,1.90003238]
[1746720341827,0.02991188,100760.0,100750.0,1.88453238]
[1746720341828,0.0199878,100760.0,100750.0,1.88453238]
[1746720342303,0.01006392,100760.0,100750.0,1.88453238]
[1746720342527,0.00014014,100760.0,100750.0,1.91523238]
[1746720342745,0.01006392,100760.0,100750.0,1.91523238]
[1746720343630,0.0199879,100760.0,100750.0,1.91523238]
[1746720343843,0.0199879,100760.0,100750.0,1.81582192]
[1746720344043,0.01006392,100760.0,100750.0,1.81582192]
[1746720344283,0.0199878,100760.0,100750.0,1.81582192]
[1746720344502,0.00014014,100760.0,100750.0,2.20024955]
[1746720344705,0.2182766,100790.0,100780.0,0.0198447]
[1746720344924,0.14035181,100790.0,100780.0,0.49213528]
[1746720345121,0.23811795,100790.0,100780.0,0.52811029]
[1746720345324,0.04430481,100790.0,100780.0,0.5380322]
[1746720345775,0.25265871,100790.0,100780.0,0.5380322]
[1746720345931,0.05722633,100790.0,100780.0,0.5380322]
[1746720346136,0.06122633,100790.0,100780.0,0.5380322]
[1746720346341,0.25965871,100790.0,100780.0,0.5380322]
[1746720346572,0.25965871,100790.0,100780.0,1.0380322]
[1746720346718,0.041383,100790.0,100780.0,1.05397322]
[1746720346930,0.25965812,100790.0,100780.0,1.0341293]
[1746720347165,0.25965871,100790.0,100780.0,1.0341293]
[1746720347361,0.25965871,100790.0,100780.0,1.05397341]
[1746720347362,0.03676396,100790.0,100780.0,1.05397341]
[1746720347561,0.23519634,100790.0,100780.0,1.05397341]
[1746720347815,0.24511786,100790.0,100780.0,0.89977341]
[1746720348019,0.02684215,100790.0,100780.0,0.90969591]
[1746720348233,0.02684205,100790.0,100780.0,0.90969591]
[1746720348579,0.03676327,100790.0,100780.0,0.90969591]
[1746720348807,0.05660601,100790.0,100780.0,0.90969591]
[1746720349023,0.36748144,100790.0,100780.0,0.52214932]
[1746720349238,0.36748144,100790.0,100780.0,0.79970173]
[1746720349239,0.34048289,100790.0,100780.0,0.79970173]
[1746720349655,0.34048289,100790.0,100780.0,0.79287725]
[1746720350114,0.33748289,100790.0,100780.0,0.79287725]
[1746720350310,0.33748289,100790.0,100780.0,0.78996611]
[1746720350788,0.34948289,100790.0,100780.0,0.78376071]
[1746720351003,0.36598289,100790.0,100780.0,0.78376071]
[1746720351225,0.36798289,100790.0,100780.0,0.5]
[1746720351443,0.36898289,100790.0,100780.0,0.5]
[1746720356353,0.70949142,100790.0,100780.0,0.5]
[1746720356565,0.36898289,100790.0,100780.0,0.5]
[1746720357385,0.36898289,100790.0,100760.0,0.28376071]
[1746720357386,0.21831824,100770.0,100760.0,0.28376071]
[1746720357712,0.31898516,100770.0,100760.0,0.28376071]
[1746720357916,0.31898516,100770.0,100760.0,0.50210101]
[1746720358338,0.30906207,100770.0,100760.0,0.28376071]
[1746720358546,0.22295668,100760.0,100750.0,0.62996774]
[1746720358715,0.33354787,100760.0,100750.0,0.49840426]
[1746720358915,0.33354787,100760.0,100750.0,0.49840435]
[1746720359214,0.3236236,100760.0,100750.0,0.49219742]
[1746720359425,0.3236236,100760.0,100750.0,0.20843671]
[1746720359608,0.3236236,100760.0,100750.0,0.49219742]
[1746720359809,0.3236236,100760.0,100750.0,0.99219742]
[1746720360209,0.3236236,100760.0,100750.0,1.00212287]
[1746720360492,0.33354768,100760.0,100750.0,1.02197329]
[1746720360689,0.20939465,100770.0,100760.0,0.21833991]
[1746720360905,0.34444909,100770.0,100760.0,0.49217654]
[1746720361147,0.34444909,100770.0,100760.0,0.50210071]
[1746720361148,0.02446374,100770.0,100760.0,0.50210071]
[1746720361352,0.24278198,100770.0,100760.0,0.50210071]
[1746720361562,0.24278198,100770.0,100760.0,0.49217654]
[1746720361760,0.24278198,100770.0,100760.0,0.49838357]
[1746720361984,0.01454085,100770.0,100760.0,0.50830765]
[1746720362235,0.2083535,100790.0,100780.0,0.20837447]
[1746720362490,0.01984431,100780.0,100770.0,0.24019485]
[1746720362733,0.68082265,100780.0,100770.0,0.48223247]
[1746720362967,0.68082265,100780.0,100770.0,0.51200203]
[1746720363188,0.68082265,100780.0,100770.0,0.51820732]
[1746720363415,0.44268176,100780.0,100770.0,0.82102267]
[1746720363674,0.59541107,100810.0,100790.0,0.2083538]
[1746720363926,0.68431699,100810.0,100800.0,0.77585454]
[1746720364129,0.68647921,100810.0,100800.0,0.77585454]
[1746720364339,0.666641,100810.0,100800.0,0.78206003]
[1746720364539,0.46824799,100810.0,100800.0,1.2019006]
[1746720364748,0.6864798,100810.0,100800.0,1.21103973]
[1746720364952,0.36758048,100810.0,100800.0,1.22781457]
[1746720365154,0.00014162,100810.0,100800.0,1.23773451]
[1746720365331,0.01306038,100810.0,100800.0,1.23773451]
[1746720365723,0.02297934,100810.0,100800.0,1.23773451]
[1746720365927,0.00314162,100810.0,100800.0,1.60863451]
[1746720366130,0.00014162,100810.0,100800.0,1.60863451]
[1746720366466,0.01106048,100810.0,100800.0,1.59949557]
[1746720366751,0.01306058,100810.0,100800.0,1.59949557]
[1746720366960,0.00314162,100810.0,100800.0,1.59949557]
[1746720367373,0.23273245,100830.0,100820.0,0.22812813]
[1746720367374,0.01983378,100830.0,100820.0,0.22812813]
[1746720367584,0.2281525,100830.0,100820.0,0.50197087]
[1746720367999,0.19839301,100810.0,100800.0,0.8468546]
[1746720368197,0.21823181,100810.0,100800.0,1.13061531]
[1746720368405,0.32352023,100810.0,100800.0,0.5068546]
[1746720368605,0.0158,100820.0,100800.0,2.02991351]
[1746720368808,0.3433364,100820.0,100810.0,0.48215372]
[1746720369009,0.33341813,100820.0,100810.0,0.49207327]
[1746720369255,0.33341813,100820.0,100810.0,0.51811624]
[1746720369400,0.13504421,100820.0,100810.0,0.92803549]
[1746720369610,0.11520777,100820.0,100810.0,0.93795464]
[1746720369956,0.33441774,100820.0,100810.0,0.98720013]
[1746720370236,0.33541774,100820.0,100810.0,1.01389373]
[1746720370444,0.33441774,100820.0,100810.0,1.13129078]
[1746720370652,0.33441774,100820.0,100810.0,1.51389373]
[1746720371079,0.33441774,100820.0,100810.0,1.49405473]
[1746720371229,0.33441774,100820.0,100810.0,1.11145178]
[1746720371420,0.33441774,100820.0,100810.0,1.12137143]
[1746720371627,0.33441774,100820.0,100810.0,1.13129098]
[1746720371867,0.3443364,100820.0,100810.0,1.50703933]
[1746720372023,0.13604441,100820.0,100810.0,1.50703933]
[1746720372223,1.0371364,100820.0,100810.0,1.51695878]
[1746720372532,1.0371364,100820.0,100810.0,1.50703933]
[1746720372732,1.0371364,100820.0,100810.0,1.51695878]
[1746720372978,1.02721823,100820.0,100810.0,1.51695878]
[1746720373224,1.02721823,100820.0,100810.0,1.50703933]
[1746720373430,1.01729976,100820.0,100810.0,1.48720013]
[1746720373632,1.01729976,100820.0,100810.0,1.49711978]
[1746720373779,1.01729976,100820.0,100810.0,1.48720013]
[1746720374128,1.01729976,100820.0,100810.0,1.50703923]
[1746720374129,0.80900777,100820.0,100810.0,1.50703923]
[1746720374326,0.81892555,100820.0,100810.0,1.52687744]
[1746720374542,0.01554085,100820.0,100810.0,1.52687744]
[1746720375186,0.001,100820.0,100810.0,1.52687744]
[1746720375328,0.001,100820.0,100810.0,1.87369732]
[1746720375555,0.001,100820.0,100810.0,1.90399732]
[1746720375958,0.02698444,100830.0,100820.0,0.20829199]
[1746720376190,0.3784393,100830.0,100820.0,0.58718045]
[1746720376393,0.177607,100830.0,100820.0,0.58718045]
[1746720376587,0.17016909,100830.0,100820.0,0.59709911]
[1746720376791,0.18008647,100830.0,100820.0,0.59709911]
[1746720376998,0.18008657,100830.0,100820.0,0.58718045]
[1746720377151,0.17116909,100830.0,100820.0,0.59709901]
[1746720377350,0.1721687,100830.0,100820.0,0.61693585]
[1746720377563,0.16968903,100830.0,100820.0,1.10701748]
[1746720377788,0.01658803,100830.0,100820.0,1.12685372]
[1746720377994,0.00204718,100830.0,100820.0,1.12685372]
[1746720378166,0.00204718,100830.0,100820.0,1.49885372]
[1746720378508,0.05142798,100860.0,100850.0,0.19831432]
[1746720378713,0.15199097,100860.0,100850.0,0.61066372]
[1746720378919,0.13599077,100860.0,100850.0,0.61066372]
[1746720379130,0.10113878,100860.0,100850.0,0.61066391]
[1746720379350,0.00047186,100860.0,100850.0,1.02057893]
[1746720379744,0.00047186,100860.0,100850.0,1.02007893]
[1746720380147,0.00147186,100860.0,100850.0,1.49855002]
[1746720380567,0.00047186,100860.0,100850.0,1.49955002]
[1746720380778,0.00047186,100860.0,100850.0,1.3672831]
[1746720380982,0.00047186,100860.0,100850.0,1.3682831]
[1746720381192,0.00047186,100860.0,100850.0,1.8682831]
[1746720382009,0.00047186,100860.0,100850.0,1.8672831]
[1746720382214,0.00047186,100860.0,100850.0,1.8662831]
[1746720382420,0.00047186,100860.0,100850.0,2.00475002]
[1746720383031,0.00047186,100860.0,100850.0,2.01153182]
[1746720383667,0.02029984,100860.0,100850.0,1.8800649]
[1746720383874,0.02029984,100860.0,100850.0,1.48754614]
[1746720384083,0.00047186,100860.0,100850.0,1.87014909]
[1746720384287,0.00047186,100860.0,100850.0,1.86336729]
[1746720385769,0.00047186,100860.0,100850.0,1.96403421]
[1746720386803,0.00047186,100860.0,100850.0,1.99413421]
[1746720387448,0.35736,100890.0,100880.0,0.22799245]
[1746720387660,0.35736,100890.0,100880.0,0.6105954]
[1746720387661,0.35750153,100890.0,100880.0,0.6105954]
[1746720387860,0.36741262,100890.0,100880.0,0.6105954]
[1746720388175,0.35750153,100890.0,100880.0,1.01679957]
[1746720388383,0.37732342,100890.0,100880.0,1.01679957]
[1746720388584,0.38723471,100890.0,100880.0,1.01679957]
[1746720388784,0.37932342,100890.0,100880.0,1.01679957]
[1746720388903,0.03187471,100890.0,100880.0,1.01679957]
[1746720389305,0.03187471,100890.0,100880.0,1.51679957]
[1746720389500,0.24465126,100890.0,100880.0,1.28880712]
[1746720389707,0.24465126,100890.0,100880.0,0.90620417]
[1746720389708,0.36710787,100890.0,100880.0,0.90620417]
[1746720389910,0.36510787,100890.0,100880.0,0.50620417]
[1746720390526,0.36810787,100890.0,100880.0,0.00620417]
[1746720390973,0.70510787,100890.0,100880.0,0.00620417]
[1746720391213,0.22804744,100860.0,100840.0,0.62058444]
[1746720391416,0.13503634,100860.0,100850.0,0.21814564]
[1746720391751,0.11520777,100860.0,100850.0,0.62057893]
[1746720391931,0.11520777,100860.0,100850.0,1.12677993]
[1746720391932,0.02445479,100860.0,100850.0,1.12677993]
[1746720392131,0.01454085,100860.0,100850.0,1.13669495]
[1746720392723,0.02445469,100860.0,100850.0,1.12778013]
[1746720392925,0.72716873,100860.0,100850.0,1.13769535]
[1746720393132,0.27327862,100860.0,100850.0,0.70551512]
[1746720393331,0.04428307,100860.0,100850.0,0.72534615]
[1746720393531,0.05419741,100860.0,100850.0,1.09803368]
[1746720393714,0.06949741,100860.0,100850.0,1.1079491]
[1746720393910,0.03436873,100860.0,100850.0,1.12977944]
[1746720394120,0.03436883,100860.0,100850.0,1.1099491]
[1746720394332,0.04428326,100860.0,100850.0,1.10994919]
[1746720394501,0.04966883,100860.0,100850.0,0.74717698]
[1746720394709,0.37394534,100860.0,100850.0,0.70751512]
[1746720394942,0.16573575,100860.0,100850.0,0.70751512]
[1746720395143,0.16573575,100860.0,100850.0,0.71743083]
[1746720395144,0.18556481,100860.0,100850.0,0.71743083]
[1746720395344,0.18556481,100860.0,100850.0,0.73726195]
[1746720395345,0.17565018,100860.0,100850.0,0.73726195]
[1746720395661,0.03436883,100860.0,100850.0,1.13969544]
[1746720395883,0.03436883,100860.0,100850.0,0.89180375]
[1746720396108,0.24257783,100860.0,100850.0,0.89180375]
[1746720396333,0.23266438,100860.0,100850.0,0.5092008]
[1746720396557,0.24816438,100860.0,100850.0,0.5092008]
[1746720397851,0.24816438,100860.0,100850.0,0.7924815]
[1746720398073,0.26416438,100860.0,100850.0,0.7924815]
[1746720398519,0.24816438,100860.0,100850.0,0.7924815]
[1746720398751,0.23266438,100860.0,100850.0,0.7924815]
[1746720399981,0.23266438,100860.0,100850.0,0.79928618]
[1746720400192,0.23266438,100860.0,100850.0,0.51600548]
[1746720400390,0.23266438,100860.0,100850.0,0.7924815]
[1746720401030,0.24776438,100860.0,100850.0,0.7924815]
[1746720401229,0.23266438,100860.0,100850.0,0.7924815]
[1746720401435,0.22275004,100860.0,100850.0,0.7924815]
[1746720401648,0.04101247,100880.0,100860.0,0.02974271]
[1746720401855,0.31874691,100880.0,100870.0,0.501383]
[1746720402056,0.31874691,100880.0,100870.0,0.4815557]
[1746720402057,0.32865967,100880.0,100870.0,0.4815557]
[1746720402258,0.35930052,100880.0,100870.0,0.49146945]
[1746720402480,0.14494517,100880.0,100870.0,0.49767025]
[1746720402691,0.14494498,100880.0,100870.0,0.5274105]
[1746720402900,0.001,100880.0,100870.0,0.53732297]
[1746720403101,0.01091198,100880.0,100870.0,0.84615297]
[1746720403322,0.04064899,100880.0,100870.0,0.84615297]
[1746720403533,0.03073642,100880.0,100870.0,0.84615297]
[1746720403739,0.04129506,100880.0,100870.0,0.85295706]
[1746720403922,0.03138249,100880.0,100870.0,0.85295706]
[1746720404079,0.04029506,100880.0,100870.0,0.86046911]
[1746720404265,0.03964899,100880.0,100870.0,0.86046911]
[1746720404466,0.04064899,100880.0,100870.0,0.86046911]
[1746720404666,0.04164899,100880.0,100870.0,0.86046911]
[1746720404910,0.02973642,100880.0,100870.0,0.86046911]
[1746720405462,0.02973632,100880.0,100870.0,1.26046911]
[1746720406508,0.36478796,100880.0,100870.0,1.1965865]
[1746720406682,0.16653202,100880.0,100870.0,0.9331328]
[1746720406845,0.38461318,100880.0,100870.0,0.7965865]
[1746720407047,0.00014153,100890.0,100880.0,0.20816801]
[1746720407270,0.00014153,100890.0,100880.0,0.91127315]
[1746720407477,0.00014153,100890.0,100880.0,0.91747395]
[1746720407673,0.00014153,100890.0,100880.0,1.62678627]
[1746720407930,0.00014153,100890.0,100880.0,1.64258627]
[1746720408088,0.00014153,100890.0,100880.0,1.35930557]
[1746720408290,0.00114153,100890.0,100880.0,1.37450557]
[1746720408886,0.00114153,100890.0,100880.0,1.37550557]
[1746720409099,0.00114153,100890.0,100880.0,1.65878627]
[1746720409723,0.00114153,100890.0,100880.0,1.96761627]
[1746720409927,0.00114153,100890.0,100880.0,2.16506939]
[1746720410124,0.00014153,100890.0,100880.0,2.16506939]
[1746720410498,0.00014153,100890.0,100880.0,2.26573631]
[1746720410740,0.00014153,100890.0,100880.0,2.18550878]
[1746720411058,0.00014153,100890.0,100880.0,1.80350152]
[1746720411172,0.00014153,100890.0,100880.0,1.80550152]
[1746720411608,0.00014153,100890.0,100880.0,1.78970152]
[1746720411813,0.00014153,100890.0,100880.0,1.80540152]
[1746720412049,0.00014153,100890.0,100880.0,2.18940878]
[1746720413579,0.00014153,100890.0,100880.0,1.77650152]
[1746720413768,0.02987569,100890.0,100880.0,1.6460975]
[1746720413967,0.00014153,100890.0,100880.0,1.6758346]
[1746720414970,0.01005252,100890.0,100880.0,1.6758346]
[1746720415168,0.00014153,100890.0,100880.0,1.6758346]
[1746720415553,0.01005252,100890.0,100880.0,1.6758346]
[1746720415753,0.01005243,100890.0,100880.0,1.6758346]
[1746720416355,0.03978629,100890.0,100880.0,1.66592253]
[1746720416559,0.01005243,100890.0,100880.0,1.6758346]
[1746720417056,0.01996352,100890.0,100880.0,1.6758346]
[1746720417255,0.01005243,100890.0,100880.0,1.6758346]
[1746720417689,0.00014153,100890.0,100880.0,1.77650152]
[1746720419090,0.00014153,100890.0,100880.0,1.6758346]
[1746720419477,0.00014153,100890.0,100880.0,1.68574677]
[1746720422034,0.00014153,100890.0,100880.0,2.20042095]
[1746720423458,0.0005,100900.0,100890.0,0.22796986]
[1746720423680,0.0005,100900.0,100890.0,0.74204404]
[1746720423916,0.0005,100900.0,100890.0,1.08824484]
[1746720424122,0.0005,100900.0,100890.0,1.49504893]
[1746720424326,0.24580102,100950.0,100930.0,0.21797234]
[1746720424544,0.12047929,100940.0,100930.0,0.60988696]
[1746720424751,0.02972179,100930.0,100920.0,0.56477944]
[1746720424957,0.23778658,100930.0,100920.0,0.95298809]
[1746720425191,0.03962945,100930.0,100920.0,0.96289624]
[1746720425418,0.03962945,100930.0,100920.0,1.36289624]
[1746720426079,0.25097254,100930.0,100920.0,0.75300489]
[1746720426301,0.36618031,100930.0,100920.0,0.35300489]
[1746720426528,0.36618031,100930.0,100920.0,0.01300489]
[1746720426934,0.36618031,100930.0,100920.0,0.3150308]
[1746720427149,0.36918031,100930.0,100920.0,0.3150308]
[1746720427385,0.37218031,100930.0,100920.0,0.3150308]
[1746720427806,0.37218031,100930.0,100920.0,0.5231164]
[1746720428024,0.36227265,100930.0,100920.0,0.3150308]
[1746720429825,0.41908331,100930.0,100920.0,0.3150308]
[1746720430082,0.36227265,100930.0,100920.0,0.3150308]
[1746720430517,0.36227265,100930.0,100920.0,0.0062008]
[1746720431180,0.36227265,100930.0,100920.0,0.20437757]
[1746720431967,0.36227265,100930.0,100920.0,0.70437378]
[1746720432194,0.17402298,100930.0,100920.0,0.99721327]
[1746720432411,0.17402298,100930.0,100920.0,1.00712191]
[1746720432412,0.13966692,100930.0,100920.0,1.00712191]
[1746720432645,0.006,100930.0,100920.0,1.3669385]
[1746720432852,0.03572198,100930.0,100920.0,1.3669385]
[1746720433277,0.05026283,100930.0,100920.0,1.3669385]
[1746720433515,0.25347913,100930.0,100920.0,0.70301934]
[1746720433726,0.36974605,100930.0,100920.0,0.49804924]
[1746720433950,0.36974605,100930.0,100920.0,0.89804924]
[1746720434168,0.36974605,100930.0,100920.0,1.09622601]
[1746720434376,0.35983849,100930.0,100920.0,0.89804924]
[1746720434596,0.35983849,100930.0,100920.0,0.50484257]
[1746720435013,0.35983849,100930.0,100920.0,0.49804924]
[1746720435887,0.35983849,100930.0,100920.0,0.39804924]
[1746720436759,0.35983849,100930.0,100920.0,0.59622601]
[1746720436970,0.32913849,100930.0,100920.0,0.59622601]
[1746720437179,0.32913849,100930.0,100920.0,0.89897394]
[1746720437180,0.34895292,100930.0,100920.0,0.89897394]
[1746720437392,0.34895292,100930.0,100920.0,0.89897404]
[1746720437582,0.34895292,100930.0,100920.0,0.90888248]
[1746720437804,0.35886077,100930.0,100920.0,0.8890655]
[1746720437990,0.35886077,100930.0,100920.0,0.89897404]
[1746720438191,0.16070364,100930.0,100920.0,0.8160648]
[1746720438400,0.36445361,100930.0,100920.0,0.51331716]
[1746720438827,0.37094625,100930.0,100920.0,0.30523156]
[1746720439170,0.37094625,100930.0,100920.0,0.496615]
[1746720439955,0.37094625,100930.0,100920.0,0.29843823]
[1746720440166,0.37612559,100930.0,100920.0,0.29843823]
[1746720440774,0.37094625,100930.0,100920.0,0.29843823]
[1746720441765,0.42862439,100930.0,100920.0,0.29843823]
[1746720441976,0.653877,100930.0,100920.0,0.29843823]
[1746720442538,0.653877,100930.0,100920.0,0.29224122]
[1746720442539,0.37094625,100930.0,100920.0,0.29224122]
[1746720443385,0.21801496,100910.0,100900.0,0.20441088]
[1746720443592,0.34968247,100910.0,100900.0,0.00619701]
[1746720443813,0.36422332,100910.0,100900.0,0.00619701]
[1746720444237,0.16602691,100910.0,100900.0,0.21432386]
[1746720444452,0.01454085,100910.0,100900.0,0.60621345]
[1746720444655,0.05081688,100920.0,100910.0,0.20809009]
[1746720444871,0.17130029,100920.0,100910.0,0.20809009]
[1746720445093,0.17130029,100920.0,100910.0,0.2142871]
[1746720445308,0.3840187,100920.0,100910.0,0.2142872]
[1746720445529,0.3840187,100920.0,100910.0,0.22419692]
[1746720445702,0.13502396,100920.0,100910.0,0.51703709]
[1746720445911,0.13502387,100920.0,100910.0,0.51703709]
[1746720446108,0.13502436,100920.0,100910.0,0.49721785]
[1746720446582,0.13502436,100920.0,100910.0,0.70437738]
[1746720446583,0.34310987,100920.0,100910.0,0.70437738]
[1746720446837,0.36430172,100920.0,100910.0,0.70439342]
[1746720447306,0.36430172,100920.0,100910.0,0.71430314]
[1746720447798,0.35439328,100920.0,100910.0,0.70439342]
[1746720448023,0.34448454,100920.0,100910.0,0.70439342]
[1746720448252,0.34448454,100920.0,100910.0,0.50619701]
[1746720448478,0.34448454,100920.0,100910.0,0.70439342]
[1746720449185,0.34448454,100920.0,100910.0,0.50619701]
[1746720449472,0.34448454,100920.0,100910.0,0.70439342]
[1746720449684,0.34448454,100920.0,100910.0,0.50619701]
[1746720451354,0.62741529,100920.0,100910.0,0.50619701]
[1746720451534,0.34448454,100920.0,100910.0,0.50619701]
[1746720452052,0.34448454,100920.0,100910.0,0.5]
[1746720452270,0.03964162,100900.0,100890.0,0.53379897]
[1746720452452,0.36061458,100900.0,100890.0,0.50406412]
[1746720452689,0.36061458,100900.0,100890.0,0.21122169]
[1746720452881,0.36061458,100900.0,100890.0,0.23104495]
[1746720453220,0.36061458,100900.0,100890.0,0.5139758]
[1746720453446,0.13039843,100900.0,100890.0,0.52388729]
[1746720453647,0.32861448,100900.0,100890.0,0.49415244]
[1746720453852,0.34970447,100900.0,100890.0,0.99515244]
[1746720454061,0.34970447,100900.0,100890.0,0.71222169]
[1746720454726,0.34970447,100900.0,100890.0,0.73204476]
[1746720454930,0.15148842,100900.0,100890.0,0.72213327]
[1746720455136,0.34970447,100900.0,100890.0,1.01497571]
[1746720455877,0.34970447,100900.0,100890.0,0.99515244]
[1746720456128,0.13039813,100900.0,100890.0,1.01797531]
[1746720456353,0.13039813,100900.0,100890.0,1.01797541]
[1746720456554,0.33852498,100900.0,100890.0,1.00506402]
[1746720456768,0.33852498,100900.0,100890.0,1.01697551]
[1746720456979,0.33852498,100900.0,100890.0,0.73404476]
[1746720457255,0.35352498,100900.0,100890.0,0.73404486]
[1746720457667,0.13039813,100900.0,100890.0,1.01697561]
[1746720457880,0.13039813,100900.0,100890.0,1.026887]
[1746720458147,0.32861487,100900.0,100890.0,0.99715244]
[1746720458330,0.35110447,100900.0,100890.0,0.71422604]
[1746720458556,0.35110447,100900.0,100890.0,0.73404931]
[1746720458750,0.35110447,100900.0,100890.0,1.13404931]
[1746720458961,0.35110447,100900.0,100890.0,1.12413782]
[1746720459194,0.33450447,100900.0,100890.0,1.12413782]
[1746720459422,0.33450447,100900.0,100890.0,1.01698006]
[1746720459646,0.13628802,100900.0,100890.0,0.7439607]
[1746720459864,0.33450407,100900.0,100890.0,1.00706857]
[1746720460090,0.34441487,100900.0,100890.0,0.71422604]
[1746720460319,0.35000447,100900.0,100890.0,0.51599034]
[1746720460527,0.42082113,100900.0,100890.0,0.51599034]
[1746720460792,0.98747607,100900.0,100890.0,0.50979333]
[1746720461022,1.08747607,100900.0,100890.0,0.50979333]
[1746720461248,1.08747607,100900.0,100890.0,0.46020753]
[1746720461469,1.03747607,100900.0,100890.0,0.46020753]
[1746720461944,0.98747607,100900.0,100890.0,0.46020753]
[1746720462170,1.08797607,100900.0,100890.0,0.001]
[1746720462377,0.04428356,100860.0,100850.0,0.28483461]
[1746720462601,0.14495048,100860.0,100850.0,0.28791946]
[1746720462792,0.14495048,100860.0,100850.0,0.28172245]
[1746720463028,0.12512171,100860.0,100850.0,0.58448413]
[1746720463175,0.13503595,100860.0,100850.0,0.57456881]
[1746720463386,0.13503585,100860.0,100850.0,0.59439954]
[1746720463594,0.11520777,100860.0,100850.0,0.57471034]
[1746720463797,0.03582425,100880.0,100870.0,0.20818865]
[1746720463949,0.12511975,100880.0,100870.0,0.5109463]
[1746720464195,0.01982307,100890.0,100880.0,0.19825535]
[1746720464431,0.0005,100900.0,100890.0,0.20814738]
[1746720464705,0.01041031,100900.0,100890.0,0.49107813]
[1746720464921,0.02032022,100900.0,100890.0,0.70275392]
[1746720465151,0.02032022,100900.0,100890.0,0.9208119]
[1746720465357,0.01041001,100900.0,100890.0,0.51709902]
[1746720465565,0.0005,100900.0,100890.0,0.52701011]
[1746720465780,0.0005,100900.0,100890.0,0.5208119]
[1746720465994,0.0005,100900.0,100890.0,1.0208119]
[1746720466209,0.0005,100900.0,100890.0,0.74407936]
[1746720466426,0.0025,100900.0,100890.0,1.02701011]
[1746720466633,0.03223082,100900.0,100890.0,0.7143453]
[1746720466895,0.04977167,100900.0,100890.0,0.72425717]
[1746720467152,0.04977167,100900.0,100890.0,0.71805877]
[1746720467360,0.05968237,100900.0,100890.0,0.6982357]
[1746720467567,0.04977167,100900.0,100890.0,0.71805906]
[1746720467775,0.02995086,100900.0,100890.0,0.72797045]
[1746720467993,0.02995086,100900.0,100890.0,0.73788154]
[1746720468196,0.02795086,100900.0,100890.0,0.73788154]
[1746720468446,0.03786107,100900.0,100890.0,0.74407975]
[1746720468652,0.03886107,100900.0,100890.0,0.74407975]
[1746720469099,0.03786107,100900.0,100890.0,0.73416876]
[1746720469272,0.03786107,100900.0,100890.0,1.15399124]
[1746720469490,0.03486107,100900.0,100890.0,1.14408015]
[1746720469697,0.03486107,100900.0,100890.0,1.14407995]
[1746720469906,0.03486107,100900.0,100890.0,1.15499104]
[1746720470112,0.05468198,100900.0,100890.0,1.14508015]
[1746720470319,0.25289803,100900.0,100890.0,1.12525737]
[1746720470725,0.06459268,100900.0,100890.0,1.12525727]
[1746720470933,0.25289852,100900.0,100890.0,1.12525727]
[1746720471145,0.03486137,100900.0,100890.0,1.14507975]
[1746720471562,0.03486137,100900.0,100890.0,1.13516866]
[1746720471793,0.33374512,100900.0,100890.0,0.50719821]
[1746720472003,0.36434512,100900.0,100890.0,0.50719821]
[1746720472476,0.36434512,100900.0,100890.0,0.501]
[1746720473327,0.36384512,100900.0,100890.0,0.4995]